fUSD/lending_fUSD_20250428
["ID","MTS","AMOUNT","RATE_DAILY","PERIOD"]
[359250037,1745869853903,-470.0,0.00038356,6]
[359250038,1745869853914,-470.0,0.00038356,6]
[359250039,1745869853924,-470.0,0.00038356,6]
[359250040,1745869853933,-470.0,0.00038356,6]
[359250041,1745869853943,-470.0,0.00038356,6]
[359250042,1745869853953,-470.0,0.00038356,6]
[359250043,1745869853962,-470.0,0.00038356,6]
[359250044,1745869853971,-3518.77,0.00038356,6]
[359250045,1745869853981,-510.15081942,0.00038356,6]
[359250046,1745869853991,-470.0,0.00038356,6]
[359250047,1745869854000,-470.0,0.00038356,6]
[359250048,1745869854010,-157.69380446,0.00038356,6]
[359250049,1745869854020,-308.23586,0.00038356,7]
[359250050,1745869854029,-470.0,0.00038356,6]
[359250051,1745869854039,-470.0,0.00038356,6]
[359250052,1745869854050,-470.0,0.00038356,6]
[359250053,1745869854061,-470.0,0.00038356,6]
[359250054,1745869854071,-470.0,0.00038356,6]
[359250055,1745869854080,-503.96,0.00038356,6]
[359250056,1745869854090,-200.08091903,0.00038356,6]
[359250057,1745869854099,-470.0,0.00038356,6]
[359250058,1745869854109,-308.23586,0.00038356,7]
[359250059,1745869854119,-151.0,0.00038356,7]
[359250060,1745869854129,-4038.51,0.00038356,6]
[359250061,1745869854139,-159.13729955,0.00038356,6]
[359250062,1745869854149,-404.87727395,0.00038356,6]
[359250063,1745869854333,-151.0,0.00038356,7]
[359250064,1745869854345,-470.0,0.00038356,6]
[359250065,1745869854355,-470.0,0.00038356,6]
[359250066,1745869854366,-217.48385166,0.00038356,6]
[359250067,1745869854376,-470.0,0.00038356,6]
[359250068,1745869854386,-151.0,0.00038356,7]
[359250069,1745869854396,-470.0,0.00038356,6]
[359250070,1745869854406,-470.0,0.00038356,6]
[359250071,1745869854415,-654.98,0.00038356,6]
[359250072,1745869854425,-470.0,0.00038356,6]
[359250073,1745869854434,-470.0,0.00038356,6]
[359250074,1745869854444,-470.0,0.00038356,6]
[359250075,1745869854454,-470.0,0.00038356,6]
[359250076,1745869854464,-508.84,0.00038356,6]
[359250077,1745869854474,-233.43978532,0.00038356,6]
[359250078,1745869854484,-1415.5,0.00038356,6]
[359250079,1745869854494,-352.60015615,0.00038356,6]
[359250080,1745869854505,-334.22950987,0.00038356,6]
[359250081,1745869854514,-470.0,0.00038356,6]
[359250082,1745869854523,-470.0,0.00038356,6]
[359250083,1745869854532,-533.08440656,0.00038356,6]
[359250084,1745869854542,-165.01358372,0.00038356,6]
[359250085,1745869854551,-470.0,0.00038356,6]
[359250086,1745869854561,-470.0,0.00038356,6]
[359250087,1745869854571,-1899.62,0.00038356,6]
[359250088,1745869854580,-470.0,0.00038356,6]
[359250089,1745869854590,-470.0,0.00038356,6]
[359250090,1745869854599,-494.09,0.00038356,6]
[359250091,1745869854610,-470.0,0.00038356,6]
[359250092,1745869854620,-470.0,0.00038356,6]
[359250093,1745869854629,-17231.66,0.00038356,6]
[359250094,1745869854639,-470.0,0.00038356,6]
[359250095,1745869854650,-571.64,0.00038356,6]
[359250096,1745869854661,-470.0,0.00038356,6]
[359250097,1745869854671,-670.48,0.00038356,6]
[359250098,1745869854679,-151.0,0.00038356,7]
[359250099,1745869854689,-470.0,0.00038356,6]
[359250100,1745869854700,-470.0,0.00038356,6]
[359250101,1745869854710,-719.75,0.00038356,6]
[359250102,1745869854722,-470.0,0.00038356,6]
[359250103,1745869854731,-541.88,0.00038356,6]
[359250104,1745869854742,-610.73989368,0.00038356,6]
[359250105,1745869854751,-470.0,0.00038356,6]
[359250106,1745869854761,-474.30726478,0.00038356,6]
[359250107,1745869854771,-470.0,0.00038356,6]
[359250108,1745869854781,-470.0,0.00038356,6]
[359250109,1745869854791,-470.0,0.00038356,6]
[359250110,1745869854801,-531.57,0.00038356,6]
[359250111,1745869854810,-806.3,0.00038356,6]
[359250112,1745869854819,-470.0,0.00038356,6]
[359250113,1745869854829,-470.0,0.00038356,6]
[359250114,1745869854838,-580.52,0.00038356,6]
[359250115,1745869854848,-470.0,0.00038356,6]
[359250116,1745869854858,-1419.06,0.00038356,6]
[359250117,1745869854869,-568.79,0.00038356,6]
[359250118,1745869854879,-151.0,0.00038356,7]
[359250119,1745869854888,-470.0,0.00038356,6]
[359250120,1745869854898,-262.04004566,0.00038356,6]
[359250121,1745869854908,-470.0,0.00038356,6]
[359250122,1745869854920,-508.58013867,0.00038356,6]
[359250123,1745869854930,-470.0,0.00038356,6]
[359250124,1745869854939,-470.0,0.00038356,6]
[359250125,1745869854949,-483.81,0.00038356,6]
[359250126,1745869854959,-604.9719065,0.00038356,6]
[359250127,1745869854968,-936.66,0.00038356,6]
[359250128,1745869854978,-470.0,0.00038356,6]
[359250129,1745869854987,-470.0,0.00038356,6]
[359250130,1745869854997,-470.0,0.00038356,6]
[359250131,1745869855007,-769.52,0.00038356,6]
[359250132,1745869855016,-470.0,0.00038356,6]
[359250133,1745869855026,-470.0,0.00038356,6]
[359250134,1745869855035,-470.0,0.00038356,6]
[359250135,1745869855045,-470.0,0.00038356,6]
[359250136,1745869855055,-583.47547871,0.00038356,6]
[359250137,1745869855064,-470.0,0.00038356,6]
[359250138,1745869855073,-538.80739267,0.00038356,6]
[359250139,1745869855083,-470.0,0.00038356,6]
[359250140,1745869855093,-470.0,0.00038356,6]
[359250141,1745869855103,-761.44,0.00038356,6]
[359250142,1745869855112,-470.0,0.00038356,6]
[359250143,1745869855122,-470.0,0.00038356,6]
[359250144,1745869855132,-470.0,0.00038356,6]
[359250145,1745869855142,-470.0,0.00038356,6]
[359250146,1745869855151,-470.0,0.00038356,6]
[359250147,1745869855161,-5402.7,0.00038356,6]
[359250148,1745869855171,-470.0,0.00038356,6]
[359250149,1745869855181,-470.0,0.00038356,6]
[359250150,1745869855190,-500.0,0.00038356,6]
[359250151,1745869855200,-1670.83,0.00038356,6]
[359250152,1745869855214,-500.0,0.00038356,6]
[359250153,1745869855223,-470.0,0.00038356,6]
[359250154,1745869855234,-500.0,0.00038356,6]
[359250155,1745869855244,-500.0,0.00038356,6]
[359250156,1745869855255,-500.0,0.00038356,6]
[359250157,1745869855264,-500.0,0.00038356,6]
[359250158,1745869855274,-500.0,0.00038356,6]
[359250159,1745869855284,-400.0,0.00038356,6]
[359250160,1745869855294,-400.0,0.00038356,6]
[359250161,1745869855303,-615.97932353,0.00038356,6]
[359250162,1745869855312,-579.08,0.00038356,6]
[359250163,1745869855321,-470.0,0.00038356,6]
[359250164,1745869855331,-777.49,0.00038356,6]
[359250165,1745869855340,-470.0,0.00038356,6]
[359250166,1745869855350,-470.0,0.00038356,6]
[359250167,1745869855359,-470.0,0.00038356,6]
[359250168,1745869855369,-470.0,0.00038356,6]
[359250169,1745869855379,-470.0,0.00038356,6]
[359250170,1745869855389,-822.0,0.00038356,6]
[359250171,1745869855398,-549.36,0.00038356,6]
[359250172,1745869855408,-470.0,0.00038356,6]
[359250173,1745869855418,-543.41197594,0.00038356,6]
[359250174,1745869855428,-573.41,0.00038356,6]
[359250175,1745869855437,-470.0,0.00038356,6]
[359250176,1745869855447,-470.0,0.00038356,6]
[359250177,1745869855456,-263.15803708,0.00038356,6]
[359250178,1745869855465,-837.37,0.00038356,6]
[359250179,1745869855475,-522.62072946,0.00038356,6]
[359250180,1745869855485,-674.89,0.00038356,6]
[359250181,1745869855494,-470.0,0.00038356,6]
[359250182,1745869855503,-470.0,0.00038356,6]
[359250183,1745869855513,-940.81,0.00038356,6]
[359250184,1745869855522,-470.0,0.00038356,6]
[359250185,1745869855531,-470.0,0.00038356,6]
[359250186,1745869855540,-151.0,0.00038356,7]
[359250187,1745869855549,-470.0,0.00038356,6]
[359250188,1745869855559,-470.0,0.00038356,6]
[359250189,1745869855568,-185.86546102,0.00038356,6]
[359250190,1745869855578,-593.80317312,0.00038356,6]
[359250191,1745869855587,-470.0,0.00038356,6]
[359250192,1745869855596,-888.68,0.00038356,6]
[359250193,1745869855606,-470.0,0.00038356,6]
[359250194,1745869855615,-470.0,0.00038356,6]
[359250195,1745869855624,-470.0,0.00038356,6]
[359250196,1745869855634,-470.0,0.00038356,6]
[359250197,1745869855643,-581.02027436,0.00038356,6]
[359250198,1745869855652,-470.0,0.00038356,6]
[359250199,1745869855661,-470.0,0.00038356,6]
[359250200,1745869855670,-470.0,0.00038356,6]
[359250201,1745869855679,-151.0,0.00038356,7]
[359250202,1745869855688,-563.06719549,0.00038356,6]
[359250203,1745869855697,-470.0,0.00038356,6]
[359250204,1745869855707,-470.0,0.00038356,6]
[359250205,1745869855715,-532.724592,0.00038356,6]
[359250206,1745869855725,-470.0,0.00038356,6]
[359250207,1745869855734,-470.0,0.00038356,6]
[359250208,1745869855743,-489.83103997,0.00038356,6]
[359250209,1745869855753,-470.0,0.00038356,6]
[359250210,1745869855762,-470.0,0.00038356,6]
[359250211,1745869855771,-470.0,0.00038356,6]
[359250212,1745869855780,-516.15122785,0.00038356,6]
[359250213,1745869855790,-655.26,0.00038356,6]
[359250214,1745869855799,-470.0,0.00038356,6]
[359250215,1745869855808,-470.0,0.00038356,6]
[359250216,1745869855818,-317.71941396,0.00038356,6]
[359250217,1745869855827,-151.0,0.00038356,7]
[359250218,1745869855837,-470.0,0.00038356,6]
[359250219,1745869855846,-500.0,0.00038356,6]
[359250220,1745869855859,-470.0,0.00038356,6]
[359250221,1745869855869,-3216.89,0.00038356,6]
[359250222,1745869855878,-470.0,0.00038356,6]
[359250223,1745869855887,-470.0,0.00038356,6]
[359250224,1745869855896,-709.87902027,0.00038356,6]
[359250225,1745869855972,-151.0,0.00021533,2]
[359250226,1745869855981,-173.83097973,0.00038356,6]
[359250227,1745869855991,-206.35374898,0.00038356,6]
[359250228,1745869856425,-1135.0,0.00023733,2]
[359250229,1745869856436,-4849.0348588,0.00036583,2]
[359250230,1745869856446,-263.64625102,0.00038356,6]
[359250231,1745869856457,-470.0,0.00038356,6]
[359250232,1745869856467,-470.0,0.00038356,6]
[359250233,1745869856477,-470.0,0.00038356,6]
[359250234,1745869856487,-760.21,0.00038356,6]
[359250235,1745869856498,-470.0,0.00038356,6]
[359250236,1745869856507,-470.0,0.00038356,6]
[359250237,1745869856518,-562.5,0.00038356,6]
[359250238,1745869856527,-470.0,0.00038356,6]
[359250239,1745869856537,-532.85,0.00038356,6]
[359250240,1745869856546,-500.34968512,0.00038356,2]
[359250241,1745869856556,-470.0,0.00038356,6]
[359250242,1745869856567,-470.0,0.00038356,6]
[359250243,1745869856576,-470.0,0.00038356,6]
[359250244,1745869856586,-346.37713375,0.00038356,6]
[359250245,1745869856598,-123.62286625,0.00038356,6]
[359250246,1745869856609,-1140.37,0.00038356,6]
[359250247,1745869856619,-470.0,0.00038356,6]
[359250248,1745869856628,-151.51962287,0.00038356,6]
[359250249,1745869857041,-807.44037713,0.00038356,6]
[359250250,1745869857051,-1000.0,0.00038356,6]
[359250251,1745869857061,-526.08014809,0.00038356,6]
[359250252,1745869857070,-470.0,0.00038356,6]
[359250253,1745869857079,-470.0,0.00038356,6]
[359250254,1745869857088,-593.40379394,0.00038356,6]
[359250255,1745869857097,-470.0,0.00038356,6]
[359250256,1745869857107,-470.0,0.00038356,6]
[359250257,1745869857116,-572.0,0.00038356,6]
[359250258,1745869857125,-470.0,0.00038356,6]
[359250259,1745869857136,-470.0,0.00038356,6]
[359250260,1745869857145,-860.16,0.00038356,6]
[359250261,1745869857155,-517.9910534,0.00038356,6]
[359250262,1745869857369,-1097.97,0.00038356,6]
[359250263,1745869857379,-470.0,0.00038356,6]
[359250264,1745869857388,-680.03,0.00038356,6]
[359250265,1745869857398,-151.0,0.00038356,7]
[359250266,1745869857407,-470.0,0.00038356,6]
[359250267,1745869857418,-470.0,0.00038356,6]
[359250268,1745869857427,-470.0,0.00038356,6]
[359250269,1745869857436,-470.0,0.00038356,6]
[359250270,1745869857446,-470.0,0.00038356,6]
[359250271,1745869857456,-470.0,0.00038356,6]
[359250272,1745869857466,-470.0,0.00038356,6]
[359250273,1745869857476,-470.0,0.00038356,6]
[359250274,1745869857485,-470.0,0.00038356,6]
[359250275,1745869857494,-1013.17,0.00038356,6]
[359250276,1745869857504,-470.0,0.00038356,6]
[359250277,1745869857513,-470.0,0.00038356,6]
[359250278,1745869857523,-470.0,0.00038356,6]
[359250279,1745869857533,-300.0,0.00038356,6]
[359250280,1745869857544,-175.39100344,0.00038356,2]
[359250281,1745869857554,-258.4244775,0.00038356,6]
[359250282,1745869857563,-470.0,0.00038356,6]
[359250283,1745869857574,-46.75280409,0.00038356,6]
[359250284,1745869857675,-423.24719591,0.00038356,6]
[359250285,1745869857684,-1143.26,0.00038356,6]
[359250286,1745869857693,-470.0,0.00038356,6]
[359250287,1745869857703,-470.0,0.00038356,6]
[359250288,1745869857712,-470.0,0.00038356,6]
[359250289,1745869857721,-758.74,0.00038356,6]
[359250290,1745869857730,-470.0,0.00038356,6]
[359250291,1745869857740,-470.0,0.00038356,6]
[359250292,1745869857749,-151.0,0.00038356,7]
[359250293,1745869857759,-3187.51,0.00038356,6]
[359250294,1745869857768,-50.70737628,0.00038356,7]
[359250295,1745869857824,-100.29262372,0.00038356,7]
[359250296,1745869857833,-234.96515524,0.00038356,6]
[359250297,1745869857844,-235.03484476,0.00038356,6]
[359250298,1745869857853,-470.0,0.00038356,6]
[359250299,1745869857863,-446.73497517,0.00038356,6]
[359250300,1745869857874,-23.26502483,0.00038356,6]
[359250301,1745869857883,-470.0,0.00038356,6]
[359250302,1745869857894,-470.0,0.00038356,6]
[359250303,1745869857904,-470.0,0.00038356,6]
[359250304,1745869857916,-151.0,0.00038356,7]
[359250305,1745869857926,-470.0,0.00038356,2]
[359250306,1745869857936,-568.59,0.00038356,6]
[359250307,1745869857947,-470.0,0.00038356,6]
[359250308,1745869857957,-470.0,0.00038356,6]
[359250309,1745869857966,-470.0,0.00038356,6]
[359250310,1745869857976,-470.0,0.00038356,6]
[359250311,1745869857987,-470.0,0.00038356,6]
[359250312,1745869857998,-470.0,0.00038356,6]
[359250313,1745869858009,-470.0,0.00038356,6]
[359250314,1745869858018,-470.0,0.00038356,6]
[359250315,1745869858028,-1290.46,0.00038356,6]
[359250316,1745869858039,-470.0,0.00038356,6]
[359250317,1745869858050,-470.0,0.00038356,6]
[359250318,1745869858060,-470.0,0.00038356,6]
[359250319,1745869858071,-470.0,0.00038356,6]
[359250320,1745869858081,-470.0,0.00038356,6]
[359250321,1745869858092,-470.0,0.00038356,6]
[359250322,1745869858102,-470.0,0.00038356,6]
[359250323,1745869858113,-470.0,0.00038356,6]
[359250324,1745869858123,-470.0,0.00038356,6]
[359250325,1745869858134,-602.19215717,0.00038356,6]
[359250326,1745869858144,-470.0,0.00038356,6]
[359250327,1745869858154,-2209.68,0.00038356,6]
[359250328,1745869858167,-470.0,0.00038356,6]
[359250329,1745869858177,-470.0,0.00038356,6]
[359250330,1745869858187,-470.0,0.00038356,6]
[359250331,1745869858199,-470.0,0.00038356,6]
[359250332,1745869858210,-470.0,0.00038356,6]
[359250333,1745869858220,-697.22,0.00038356,6]
[359250334,1745869858230,-470.0,0.00038356,6]
[359250335,1745869858240,-470.0,0.00038356,6]
[359250336,1745869858251,-152.573775,0.00038356,7]
[359250337,1745869858260,-470.0,0.00038356,6]
[359250338,1745869858271,-470.0,0.00038356,6]
[359250339,1745869858283,-1579.86,0.00038356,6]
[359250340,1745869858293,-470.0,0.00038356,6]
[359250341,1745869858303,-470.0,0.00038356,6]
[359250342,1745869858314,-1568.48,0.00038356,6]
[359250343,1745869858323,-470.0,0.00038356,6]
[359250344,1745869858332,-470.0,0.00038356,6]
[359250345,1745869858342,-470.0,0.00038356,6]
[359250346,1745869858351,-509.50424123,0.00038356,6]
[359250347,1745869858361,-470.0,0.00038356,6]
[359250348,1745869858372,-151.0,0.00038356,7]
[359250349,1745869858382,-470.0,0.00038356,6]
[359250350,1745869858392,-470.0,0.00038356,6]
[359250351,1745869858402,-470.0,0.00038356,6]
[359250352,1745869858412,-510.48,0.00038356,6]
[359250353,1745869858421,-470.0,0.00038356,6]
[359250354,1745869858430,-470.0,0.00038356,6]
[359250355,1745869858439,-151.0,0.00038356,7]
[359250356,1745869858449,-470.0,0.00038356,6]
[359250357,1745869858458,-1129.6,0.00038356,6]
[359250358,1745869858468,-538.46717063,0.00038356,6]
[359250359,1745869858478,-470.0,0.00038356,6]
[359250360,1745869858487,-470.0,0.00038356,6]
[359250361,1745869858497,-470.0,0.00038356,6]
[359250362,1745869858506,-200.0,0.00038356,2]
[359250363,1745869858515,-470.0,0.00038356,6]
[359250364,1745869858525,-470.0,0.00038356,6]
[359250365,1745869858534,-470.0,0.00038356,6]
[359250366,1745869858544,-470.0,0.00038356,6]
[359250367,1745869858553,-151.0,0.00038356,7]
[359250368,1745869858563,-521.23563202,0.00038356,6]
[359250369,1745869858572,-470.0,0.00038356,6]
[359250370,1745869858582,-151.0,0.00038356,7]
[359250371,1745869858592,-470.0,0.00038356,6]
[359250372,1745869858601,-470.0,0.00038356,6]
[359250373,1745869858610,-470.0,0.00038356,6]
[359250374,1745869858619,-375.49383638,0.00038356,6]
[359250375,1745869858629,-470.0,0.00038356,6]
[359250376,1745869858638,-470.0,0.00038356,6]
[359250377,1745869858647,-5312.86,0.00038356,2]
[359250378,1745869858657,-470.0,0.00038356,6]
[359250379,1745869858666,-470.0,0.00038356,6]
[359250380,1745869858675,-516.80054553,0.00038356,6]
[359250381,1745869858684,-470.0,0.00038356,6]
[359250382,1745869858694,-470.0,0.00038356,6]
[359250383,1745869858703,-500.0,0.00038356,6]
[359250384,1745869858712,-470.0,0.00038356,6]
[359250385,1745869858722,-150.0,0.00038356,2]
[359250386,1745869858731,-470.0,0.00038356,6]
[359250387,1745869858741,-470.0,0.00038356,6]
[359250388,1745869858750,-519.75362934,0.00038356,6]
[359250389,1745869858760,-470.0,0.00038356,6]
[359250390,1745869858769,-470.0,0.00038356,6]
[359250391,1745869858780,-470.0,0.00038356,6]
[359250392,1745869858789,-742.04,0.00038356,6]
[359250393,1745869858798,-470.0,0.00038356,6]
[359250394,1745869858808,-470.0,0.00038356,6]
[359250395,1745869858820,-151.0,0.00038356,7]
[359250396,1745869858831,-720.72,0.00038356,6]
[359250397,1745869858841,-470.0,0.00038356,6]
[359250398,1745869858853,-470.0,0.00038356,6]
[359250399,1745869858863,-499.7,0.00038356,6]
[359250400,1745869858872,-535.89044386,0.00038356,6]
[359250401,1745869858883,-470.0,0.00038356,6]
[359250402,1745869858893,-470.0,0.00038356,6]
[359250403,1745869858904,-470.0,0.00038356,6]
[359250404,1745869858913,-582.05,0.00038356,6]
[359250405,1745869858923,-470.0,0.00038356,6]
[359250406,1745869858933,-1799.42,0.00038356,6]
[359250407,1745869858943,-470.0,0.00038356,6]
[359250408,1745869858952,-843.26,0.00038356,6]
[359250409,1745869858962,-470.0,0.00038356,6]
[359250410,1745869858972,-399.32313046,0.00038356,2]
[359250411,1745869858981,-500.0,0.00038356,6]
[359250412,1745869858991,-470.0,0.00038356,6]
[359250413,1745869859001,-557.53,0.00038356,6]
[359250414,1745869859011,-470.0,0.00038356,2]
[359250415,1745869859021,-470.0,0.00038356,6]
[359250416,1745869859030,-654.5,0.00038356,6]
[359250417,1745869859039,-470.0,0.00038356,6]
[359250418,1745869859049,-470.0,0.00038356,6]
[359250419,1745869859059,-470.0,0.00038356,6]
[359250420,1745869859071,-151.0,0.00038356,7]
[359250421,1745869859083,-470.0,0.00038356,6]
[359250422,1745869859093,-470.0,0.00038356,6]
[359250423,1745869859103,-470.0,0.00038356,6]
[359250424,1745869859112,-400.0,0.00038356,2]
[359250425,1745869859122,-470.0,0.00038356,6]
[359250426,1745869859133,-470.0,0.00038356,6]
[359250427,1745869859142,-470.0,0.00038356,6]
[359250428,1745869859152,-151.0,0.00038356,7]
[359250429,1745869859162,-470.0,0.00038356,6]
[359250430,1745869859173,-470.0,0.00038356,6]
[359250431,1745869859183,-470.0,0.00038356,6]
[359250432,1745869859194,-367.12070165,0.00038356,6]
[359250433,1745869859208,-658.38,0.00038356,6]
[359250434,1745869859219,-470.0,0.00038356,6]
[359250435,1745869859231,-470.0,0.00038356,2]
[359250436,1745869859241,-470.0,0.00038356,6]
[359250437,1745869859254,-714.27,0.00038356,6]
[359250438,1745869859263,-286.157685,0.00038356,7]
[359250439,1745869859273,-802.022693,0.00038356,7]
[359250440,1745869859288,-400.0,0.00038356,6]
[359250441,1745869859300,-576.54,0.00038356,6]
[359250442,1745869859309,-802.022693,0.00038356,7]
[359250443,1745869859318,-286.157685,0.00038356,7]
[359250444,1745869859327,-509.72017449,0.00038356,6]
[359250445,1745869859337,-400.0,0.00038356,6]
[359250446,1745869859346,-470.0,0.00038356,6]
[359250447,1745869859356,-517.84,0.00038356,6]
[359250448,1745869859365,-175.0,0.00038356,2]
[359250449,1745869859374,-230.0,0.00038356,2]
[359250450,1745869859383,-150.0,0.00038356,5]
[359250451,1745869859392,-6347.02768434,0.0003836,4]
[359250452,1745869859402,-957.99,0.00038369,6]
[359250453,1745869859413,-957.99,0.00038369,6]
[359250454,1745869859423,-957.99,0.00038369,6]
[359250455,1745869859433,-957.99,0.00038369,6]
[359250456,1745869859442,-958.01387603,0.00038369,6]
[359250457,1745869859453,-1000.0,0.0003837,2]
[359250458,1745869859463,-500.0,0.0003837,2]
[359250459,1745869859474,-1000.0,0.0003837,2]
[359250460,1745869859484,-500.0,0.0003837,2]
[359250461,1745869859494,-1000.0,0.0003837,2]
[359250462,1745869859504,-500.0,0.0003837,2]
[359250463,1745869859515,-1000.0,0.0003837,2]
[359250464,1745869859525,-500.0,0.0003837,2]
[359250465,1745869859535,-500.0,0.0003837,2]
[359250466,1745869859546,-1000.0,0.0003837,2]
[359250467,1745869859555,-500.0,0.0003837,2]
[359250468,1745869859566,-1000.0,0.0003837,2]
[359250469,1745869859575,-500.0,0.0003837,2]
[359250470,1745869859585,-1000.0,0.0003837,2]
[359250471,1745869859595,-505.94225289,0.00038373,5]
[359250472,1745869859605,-500.0,0.00038373,5]
[359250473,1745869859615,-502.3216876,0.00038373,5]
[359250474,1745869859625,-506.72470226,0.00038373,5]
[359250475,1745869859634,-500.0,0.00038373,5]
[359250476,1745869859643,-306.59316397,0.00038373,5]
[359250477,1745869859653,-502.44539025,0.00038373,5]
[359250478,1745869859662,-500.0,0.00038373,5]
[359250479,1745869859671,-511.20789212,0.00038373,5]
[359250480,1745869859680,-500.0,0.00038373,2]
[359250481,1745869859690,-500.0,0.00038373,5]
[359250482,1745869859699,-500.0,0.00038373,2]
[359250483,1745869859709,-500.0,0.00038373,5]
[359250484,1745869859718,-500.0,0.00038373,3]
[359250485,1745869859728,-207.49766163,0.00038373,5]
[359250486,1745869859738,-500.0,0.00038373,5]
[359250487,1745869859748,-161.1858119,0.00038373,5]
[359250488,1745869859757,-500.0,0.00038373,5]
[359250489,1745869859766,-156.10421205,0.00038373,5]
[359250490,1745869859776,-500.0,0.00038383,6]
[359250491,1745869859785,-26661.7916381,0.0003839,3]
[359250492,1745869859795,-2710.43,0.00038399,6]
[359250493,1745869859804,-1548.69,0.000384,120]
[359250494,1745869859813,-23128.95,0.000384,14]
[359250495,1745869859823,-59.22,0.000384,120]
[359250496,1745869859832,-763.0,0.000384,2]
[359250497,1745869859841,-1540.8143,0.000384,2]
[359250498,1745869859850,-1540.8143,0.000384,2]
[359250499,1745869859859,-244.0,0.000384,2]
[359250500,1745869859868,-373.0,0.000384,2]
[359250501,1745869859878,-383.157,0.000384,2]
[359250502,1745869859888,-383.157,0.000384,2]
[359250503,1745869859898,-500.0,0.00038406,10]
[359250504,1745869859907,-3324.3109655,0.00038407,2]
[359250505,1745869859917,-108914.9109955,0.00038407,2]
[359250506,1745869859927,-2981.6668827,0.00038407,2]
[359250507,1745869859937,-153.304826,0.00038407,14]
[359250508,1745869859947,-151.0,0.00038407,14]
[359250509,1745869859957,-151.0,0.00038407,14]
[359250510,1745869859966,-151.0,0.00038407,14]
[359250511,1745869859977,-151.0,0.00038407,14]
[359250512,1745869859986,-151.0,0.00038407,14]
[359250513,1745869859996,-239.48024443,0.00038411,6]
[359250514,1745869860006,-211.98812332,0.00038433,2]
[359250515,1745869860015,-1003.16,0.00038484,2]
[359250516,1745869860025,-2000.0,0.000385,8]
[359250517,1745869860034,-360.13,0.00038578,2]
[359250518,1745869860044,-412.35497102,0.00038585,2]
[359250519,1745869860054,-157.668933,0.00038594,14]
[359250520,1745869860063,-151.0,0.00038594,14]
[359250521,1745869860074,-151.0,0.00038594,14]
[359250522,1745869860083,-151.0,0.00038594,14]
[359250523,1745869860093,-153.446622,0.00038594,14]
[359250524,1745869860103,-500.0,0.00038603,10]
[359250525,1745869860112,-151.0,0.00038604,14]
[359250526,1745869860122,-151.0,0.00038604,14]
[359250527,1745869860131,-151.0,0.00038604,14]
[359250528,1745869860141,-151.0,0.00038604,14]
[359250529,1745869860150,-1180.469705,0.00038604,14]
[359250530,1745869860160,-1180.469705,0.00038604,14]
[359250531,1745869860169,-153.256553,0.00038604,14]
[359250532,1745869860180,-151.0,0.00038604,14]
[359250533,1745869860189,-151.0,0.00038604,14]
[359250534,1745869860199,-427.606045,0.00038604,14]
[359250535,1745869860211,-427.606045,0.00038604,14]
[359250536,1745869860220,-151.0,0.00038604,14]